[Event "Vienna Championship-B 2022"]
[Site "Vienna"]
[Date "2022.09.17"]
[Round "1.1"]
[White "Kummer, Helmut"]
[Black "Wickramasinghe, Nathaniel"]
[Result "1-0"]
[ECO "E73"]
[WhiteElo "2203"]
[BlackElo "1760"]
[Annotator "TA"]
[PlyCount "91"]
[EventDate "2022.09.17"]
[EventType "swiss"]
[EventCountry "AUT"]
[SourceTitle "playchess.com"]
[Source "ChessBase"]
[SourceQuality "1"]
[TimeControl "5400+30"]

{[%evp 10,90,51,3,52,52,47,34,33,29,41,39,52,29,55,0,37,14,64,45,111,101,129,28,171,171,188,181,198,178,208,198,243,171,200,184,201,162,362,321,526,530,537,511,793,781,771,754,879,879,996,1016,1161,1094,1453,1399,2072,1856,1812,1698,3065,3595,29983,11308,7196,7131,29990,29991,29991,29992,29993,29994,29995,29996,29996,29997,29997,29998,29998,29998,29998,29999,29999]} 1. d4 {[%emt 0:02:22]} Nf6 {[%emt 0:00:05]} 2. c4 {[%emt 0:00:06]} g6 {[%emt 0:00:05]} 3. Nc3 {[%emt 0:00:12]} Bg7 {[%emt 0:00:05]} 4. e4 {[%emt 0:00:31]} d6 {[%emt 0:00:04]} 5. Be2 {[%emt 0:00:22]} O-O {[%emt 0:00:10]} 6. h4 {[%emt 0:00:39]} (6. Be3 $14) 6... Nbd7 {[%emt 0:00:53] E73: King's Indian: Averbakh Variation without 6...c5.} (6... c5 $11) 7. h5 $14 {[%emt 0:02:23]} e5 {[%emt 0:02:30]} 8. hxg6 {[%emt 0:12:41]} fxg6 {[%emt 0:00:07] White is slightly better.} 9. d5 {[%emt 0:00:53]} Nc5 {[%emt 0:00:17]} 10. Qc2 {[%emt 0:07:14]} a5 {[%emt 0:02:46]} 11. Bg5 {[%emt 0:02:36] [#]} Qd7 $146 {[%emt 0:00:22]} ({Predecessor:} 11... c6 12. f3 a4 13. g4 cxd5 14. exd5 e4 15. fxe4 Qa5 16. Bd2 Bxg4 17. Rb1 Bxe2 18. Ngxe2 {0-1 (25) Dettmann,H-Baumgardt,U Germany 1996}) 12. Bf3 {[%emt 0:09:17]} (12. Nh3 $14) 12... Qf7 {[%emt 0:01:06]} 13. O-O-O {[%emt 0:01:23]} Bg4 {[%emt 0:01:09]} (13... c6 $11) 14. Rh4 {[%emt 0:08:11]} Bxf3 {[%emt 0:02:13]} (14... Bd7 $14) 15. Nxf3 $16 {[%emt 0:00:08]} Nh5 {[%emt 0:08:37]} 16. Kb1 {[%emt 0:01:05]} (16. Be3 $16) 16... Nf4 {[%emt 0:03:17] This costs Black the game.} (16... Bf6 $1 $11 {and Black is okay.}) 17. Bxf4 $18 {[%emt 0:00:37]} exf4 {[%emt 0:00:06] [#]} 18. Rxh7 $3 {[%emt 0:00:11][%mdl 512]} Qf6 {[%emt 0:01:04]} (18... Rae8 19. Rdh1) 19. Rhh1 {[%emt 0:03:47]} ({But not} 19. Rdh1 Rae8 20. a3 Rf7 $16) 19... a4 {[%emt 0:00:47]} 20. a3 {[%emt 0:00:30]} Ra6 {[%emt 0:02:10]} 21. Ka2 {[%emt 0:07:53]} Re8 {[%emt 0:00:30]} 22. Rhe1 {[%emt 0:00:13]} Rb6 {[%emt 0:00:09]} 23. Nd4 {[%emt 0:09:32]} Nb3 $2 {[%emt 0:01:50]} (23... Ra6 {was called for.} 24. f3 Kf7) 24. Ndb5 {[%emt 0:02:06]} c6 $2 {[%emt 0:01:06]} (24... Nc5 25. Nxc7 Rc8) 25. Nxa4 {[%emt 0:05:18]} Rxb5 {[%emt 0:13:43]} 26. cxb5 {[%emt 0:00:16]} Nd4 {[%emt 0:00:16] [#]} (26... cxb5 $142 27. Qxb3 bxa4 28. Qxb7 f3 29. gxf3 Qxf3) 27. Rxd4 $1 {[%emt 0:03:54]} Qxd4 {[%emt 0:00:10]} 28. bxc6 {[%emt 0:00:04]} b5 {[%emt 0:01:49]} 29. Nc3 {[%emt 0:01:12]} Qc4+ {[%emt 0:00:10]} 30. Qb3 {[%emt 0:02:06]} Qd4 {[%emt 0:03:18]} 31. Re2 {[%emt 0:03:16]} Ra8 {[%emt 0:00:37]} 32. Nxb5 {[%emt 0:01:34]} Qe5 {[%emt 0:02:06]} 33. f3 {[%emt 0:01:08] Nc7 is the strong threat.} Qe7 {[%emt 0:00:34] Inhibits Nc7.} 34. Rc2 {[%emt 0:00:37]} Bf6 {[%emt 0:01:34]} 35. c7 {[%emt 0:01:14]} Qd7 {[%emt 0:00:06] [#]} 36. Qc4 {[%emt 0:00:08]} (36. Na7 $142 $1 Rf8 (36... Bd8 37. Qb7) 37. Qb7 g5 38. c8=Q Qxb7 39. Qxb7 g4 40. Qd7 Rf7 41. Rc8+ Kg7 42. Qxg4+ Kh6 {[#]} 43. Rg8 $1) 36... Rc8 {[%emt 0:00:27]} 37. Na7 {[%emt 0:13:21]} g5 {[%emt 0:01:14]} 38. Nxc8 {[%emt 0:00:00] White mates.} Qxc8 {[%emt 0:00:04] KQR-KQB} 39. Qb5 {[%emt 0:00:00]} g4 {[%emt 0:00:09]} 40. Qb8 {[%emt 0:00:00]} g3 {[%emt 0:00:10]} 41. Qxc8+ {[%emt 0:00:00]} Kg7 {[%emt 0:00:05]} 42. Qg4+ {[%emt 0:00:00]} Bg5 {[%emt 0:00:10]} 43. c8=Q {[%emt 0:00:00]} Kh7 {[%emt 0:00:12]} 44. Rc7+ {[%emt 0:00:00]} Kh6 {[%emt 0:00:06]} 45. Qcf5 {[%emt 0:00:00][%csl Gg4][%cal Rf5g5]} Be7 {[%emt 0:00:11]} 46. Qgg6# {[%emt 0:00:00] Weighted Error Value: White=0.25 (precise) /Black=0.61} 1-0

[Event "Vienna Championship-B 2022"]
[Site "Vienna"]
[Date "2022.09.17"]
[Round "1.2"]
[White "Reif, Werner"]
[Black "Wagner, Leopold Franziskus"]
[Result "0-1"]
[ECO "A46"]
[WhiteElo "1747"]
[BlackElo "2201"]
[Annotator "TA"]
[PlyCount "84"]
[EventDate "2022.09.17"]
[EventType "swiss"]
[EventCountry "AUT"]
[SourceTitle "playchess.com"]
[Source "ChessBase"]
[SourceQuality "1"]
[TimeControl "5400+30"]

{[%evp 19,84,0,31,21,17,24,12,17,11,20,9,27,50,49,72,17,49,35,80,67,128,96,134,0,12,8,111,47,6,-11,-10,-11,0,0,31,0,0,0,0,-87,-70,-71,0,0,73,0,0,-116,-111,-239,-222,-527,-509,-2030,-2009,-12840,-12840,-12841,-12841,-12843,-12843,-12844,-12844,-12845,-12846,-12847,-12847]} 1. d4 {[%emt 0:00:03]} Nf6 {[%emt 0:00:05]} 2. Nf3 {[%emt 0:00:06]} e6 {[%emt 0:00:12]} 3. Bg5 {[%emt 0:00:07]} Be7 {[%emt 0:00:07]} 4. e3 {[%emt 0:00:19]} b6 {[%emt 0:00:07]} 5. Bd3 {[%emt 0:00:33]} Bb7 {[%emt 0:00:11]} 6. Nbd2 {[%emt 0:00:11]} h6 {[%emt 0:00:50]} 7. Bh4 {[%emt 0:00:06]} c5 {[%emt 0:01:33]} 8. c3 {[%emt 0:01:17]} d5 {[%emt 0:01:13]} 9. O-O {[%emt 0:00:11]} Nbd7 {[%emt 0:00:24]} 10. Ne5 {[%emt 0:03:00]} Nxe5 {[%emt 0:01:36]} 11. dxe5 {[%emt 0:00:07] A46: 1 d4 Nf6 2 Nf3 e6: Torre, London and Colle Systems.} Nd7 {[%emt 0:00:05][%csl LRe5,LRh4]} 12. Bxe7 {[%emt 0:00:10]} Qxe7 {[%emt 0:00:01]} 13. f4 {[%emt 0:00:27] The position is equal.} O-O-O {[%emt 0:01:20]} 14. Qe2 {[%emt 0:02:31]} f6 {[%emt 0:03:20]} 15. exf6 {[%emt 0:01:53]} Nxf6 {[%emt 0:03:00]} 16. Nf3 {[%emt 0:03:53] [#]} Rhg8 $146 {[%emt 0:05:20]} ({Predecessor:} 16... Nd7 17. Bb5 Rhf8 18. a4 Nb8 19. Ne5 Rf6 20. a5 a6 21. axb6 axb5 22. Qxb5 Qd6 23. Ra7 Nd7 24. Rfa1 Qxb6 25. R1a5 c4 26. g3 {½-½ (26) Keitlinghaus,L (2390)-Kohlweyer,B (2325) Dortmund 1988}) 17. Ne5 {[%emt 0:01:29]} ({White should try} 17. a4 $16) 17... g5 {[%emt 0:01:27]} 18. Ba6 {[%emt 0:00:29] Threatens to win with Nc6.} Kb8 {[%emt 0:05:56]} 19. a4 $1 {[%emt 0:04:40] a5 is the strong threat.} c4 {[%emt 0:12:39]} (19... Qc7 $14) 20. Bxb7 {[%emt 0:09:32]} Kxb7 {[%emt 0:00:02]} 21. b4 {[%emt 0:00:41]} (21. a5 $16) 21... Qc7 {[%emt 0:09:05]} 22. b5 {[%emt 0:10:40] And now Nc6 would win.} gxf4 {[%emt 0:00:55]} (22... Rdf8 $11) 23. exf4 {[%emt 0:00:36]} ({Better is} 23. Nc6 $16) 23... Ne4 {[%emt 0:04:37]} 24. Qe3 {[%emt 0:05:00]} Qc5 $36 {[%emt 0:01:19][%mdl 2048] Black is more active. Really sharp!} (24... Qg7 25. g3 $14) 25. Qxc5 {[%emt 0:10:50]} bxc5 {[%emt 0:00:12]} 26. Rf3 {[%emt 0:00:44]} Nd2 {[%emt 0:02:16]} 27. Rf2 {[%emt 0:01:40]} Ne4 {[%emt 0:01:04][%csl LRc3,LRf2]} 28. Rf3 {[%emt 0:00:06]} a6 {[%emt 0:01:15]} 29. Re1 {[%emt 0:10:31]} (29. bxa6+ $1 $11 {keeps the balance.} Kxa6 30. Re1) 29... axb5 $17 {[%emt 0:01:22]} 30. axb5 {[%emt 0:00:12][%cal Oe5c4]} Nd6 {[%emt 0:02:05]} (30... Ra8 $17) 31. Rh3 $11 {[%emt 0:05:39]} Nf5 {[%emt 0:06:25]} (31... Rh8 $11 {remains equal.}) 32. Nf7 {[%emt 0:03:17]} (32. g4 $16) 32... Rd7 {[%emt 0:07:11]} 33. Nxh6 {[%emt 0:02:43] [#]} (33. Ne5 $1 $11 Rh7 34. Nc6) 33... Rh8 $1 $17 {[%emt 0:01:46]} 34. Nxf5 {[%emt 0:00:26] Now White is beyond hope.} ({Not} 34. Rxe6 $2 Rxh6 35. Rhxh6 (35. Rexh6 $2 Nxh6 36. Kf1 Ng4 $19) 35... Nxh6 $19) (34. Ng4 $17 {only move.} Rxh3 35. gxh3) 34... Rxh3 $19 {[%emt 0:00:06]} 35. gxh3 {[%emt 0:00:05]} (35. Ne3 Rhh7 36. g3) 35... exf5 $17 {[%emt 0:00:03][%mdl 4096] Endgame KR-KR. Black is clearly winning.} 36. Re5 {[%emt 0:00:29]} (36. Kf2 $142 Kb6 37. h4) 36... d4 $19 {[%emt 0:00:09]} 37. cxd4 {[%emt 0:03:51]} c3 {[%emt 0:05:18]} 38. Rxc5 {[%emt 0:11:13] [#]} Rc7 $1 {[%emt 0:00:15]} 39. Rxc3 {[%emt 0:00:05]} Rxc3 {[%emt 0:00:01]} 40. Kg2 {[%emt 0:00:14]} Kb6 {[%emt 0:00:09]} 41. h4 {[%emt 0:00:09]} Kxb5 {[%emt 0:00:10]} 42. h5 {[%emt 0:00:13]} Kc4 {[%emt 0:00:06] Weighted Error Value: White=0.70/Black=0.20 (precise)} 0-1

[Event "Vienna Championship-B 2022"]
[Site "Vienna"]
[Date "2022.09.17"]
[Round "1.3"]
[White "Bonk, Andras"]
[Black "Kunschek, Horst"]
[Result "1-0"]
[ECO "C44"]
[WhiteElo "2175"]
[BlackElo "1743"]
[Annotator "TA"]
[PlyCount "83"]
[EventDate "2022.09.17"]
[EventType "swiss"]
[EventCountry "AUT"]
[SourceTitle "playchess.com"]
[Source "ChessBase"]
[SourceQuality "1"]
[TimeControl "5400+30"]

{[%evp 16,83,0,0,42,37,74,27,84,64,104,106,102,46,61,22,79,43,168,163,288,184,180,180,174,187,169,126,112,115,114,108,121,127,123,75,70,68,164,164,148,156,339,332,310,302,411,409,606,623,602,585,629,644,622,608,615,487,629,629,1033,1019,993,482,29971,29972,1402,1063,4614,4562]} 1. e4 {[%emt 0:01:38]} e5 {[%emt 0:00:07]} 2. Nf3 {[%emt 0:00:07]} Nc6 {[%emt 0:00:07]} 3. d4 {[%emt 0:00:35]} exd4 {[%emt 0:00:22]} 4. c3 {[%emt 0:00:06]} d5 {[%emt 0:00:12]} 5. exd5 {[%emt 0:00:07]} Qxd5 {[%emt 0:00:15]} 6. cxd4 {[%emt 0:00:05]} Nf6 {[%emt 0:00:43]} 7. Nc3 {[%emt 0:00:45]} Bb4 {[%emt 0:00:21]} 8. Be2 {[%emt 0:00:59]} O-O {[%emt 0:00:13]} 9. O-O {[%emt 0:00:11]} Bxc3 {[%emt 0:00:18] C44: Ponziani Opening and Scotch Gambit.} 10. bxc3 {[%emt 0:00:06]} h6 {[%emt 0:00:08] [#]} 11. c4 $146 {[%emt 0:03:27]} (11. Bf4 $16) ({Predecessor:} 11. Bf4 Qd8 12. Qc1 Nd5 13. Bd2 Re8 14. Re1 Bf5 15. a3 Na5 16. Qb2 Nb6 17. Qb5 {0-1 (60) Drakakis,G (1754)-Chrysomallis,T (1985) Greece 2009}) 11... Qd8 {[%emt 0:00:28]} (11... Qd6 $1 $11) 12. Bb2 {[%emt 0:05:11]} Bg4 {[%emt 0:00:13]} 13. d5 {[%emt 0:02:49]} Na5 {[%emt 0:02:17]} 14. Qa4 {[%emt 0:12:40]} (14. Rc1 $16) 14... b6 $14 {[%emt 0:02:40]} 15. c5 {[%emt 0:04:40] [#] Bxf6 is the strong threat.} Bh5 {[%emt 0:01:45]} (15... Qe8 $1 $11 {remains equal.} 16. Bb5 Qe4) 16. Qh4 {[%emt 0:01:41] White is more active.} Bxf3 {[%emt 0:00:32]} ({Black should try} 16... Re8 $14) 17. Bxf3 $18 {[%emt 0:00:12][%cal Od5d6]} Nxd5 {[%emt 0:00:28]} (17... bxc5 $2 18. Bc3 $18) (17... Rb8 $142) 18. Qd4 {[%emt 0:01:32][%csl Gb2,LRd5,LRg7][%cal Rd4g7]} Nf6 {[%emt 0:00:49]} 19. Bxa8 {[%emt 0:00:26] A strong pair of Bishops.} Qxd4 {[%emt 0:00:03]} 20. Bxd4 {[%emt 0:00:09]} Rxa8 {[%emt 0:00:08]} 21. Rac1 {[%emt 0:04:42] Black must now prevent cxb6.} Nd5 {[%emt 0:02:13]} 22. Rfd1 {[%emt 0:09:48]} Nf4 {[%emt 0:00:37]} 23. Kf1 {[%emt 0:00:50] Prevents Ne2.} Ne6 {[%emt 0:00:22]} 24. Be3 {[%emt 0:13:36]} Nb7 {[%emt 0:00:23][%cal Rb7c5]} 25. cxb6 {[%emt 0:06:37]} ({White should play} 25. c6 Nd6 26. Rd5) 25... axb6 $16 {[%emt 0:00:29]} 26. Rd7 {[%emt 0:00:22]} Rxa2 {[%emt 0:00:28] Black is now going downhill.} (26... b5 $14) 27. Bxb6 $1 $18 {[%emt 0:00:18]} cxb6 {[%emt 0:00:51]} 28. Rxb7 $14 {[%emt 0:00:17][%mdl 4096] Endgame KRR-KRN} Rb2 $2 {[%emt 0:00:28]} (28... Nc5 $16 {was necessary.} 29. Rxb6 Nd3) 29. Rc8+ $18 {[%emt 0:02:26]} Kh7 {[%emt 0:00:22]} 30. Rxf7 {[%emt 0:03:04]} b5 {[%emt 0:00:25]} 31. g3 {[%emt 0:02:52][%cal Bg2g3,Bg3g4][%mdl 32]} b4 {[%emt 0:00:16]} (31... Rd2 $142 32. Re7 Rd6) 32. Re7 {[%emt 0:01:23]} Nd4 {[%emt 0:00:57]} 33. Rcc7 {[%emt 0:01:10]} Nf5 {[%emt 0:00:59]} 34. Rf7 {[%emt 0:00:49]} Kg6 {[%emt 0:00:27]} 35. g4 {[%emt 0:00:45]} Nd4 {[%emt 0:02:22]} 36. Rxg7+ {[%emt 0:02:37]} Kf6 {[%emt 0:00:02]} 37. Rgd7 {[%emt 0:05:33]} Ke5 {[%emt 0:00:49]} 38. Rc5+ {[%emt 0:02:19]} Ke4 {[%emt 0:00:38]} 39. Rc4 {[%emt 0:00:32]} (39. Re7+ $142 Kf4 40. Rc4) 39... Kf3 {[%emt 0:00:27] [#] Strongly threatening ...Rb1+.} 40. Rcxd4 {[%emt 0:00:13][%cal Rd7f7]} Rxf2+ {[%emt 0:00:44]} 41. Ke1 {[%emt 0:00:47] Intending Rd3+ and mate.} Rxh2 {[%emt 0:00:28]} 42. Rxb4 {[%emt 0:00:21] Weighted Error Value: White=0.36/Black=0.43} 1-0

[Event "Vienna Championship-B 2022"]
[Site "Vienna"]
[Date "2022.09.17"]
[Round "1.4"]
[White "Powell, Joshua"]
[Black "Zetthofer, Gerald"]
[Result "0-1"]
[ECO "A34"]
[WhiteElo "1738"]
[BlackElo "2153"]
[Annotator "TA"]
[PlyCount "76"]
[EventDate "2022.09.17"]
[EventType "swiss"]
[EventCountry "AUT"]
[SourceTitle "playchess.com"]
[Source "ChessBase"]
[SourceQuality "1"]
[TimeControl "5400+30"]

{[%evp 9,75,18,11,9,20,5,-9,-27,-27,-116,-116,-125,-125,-162,-147,-162,-152,-177,-105,-191,-180,-170,-166,-269,-274,-455,-450,-555,-543,-835,-790,-1222,-1134,-1116,-1110,-1065,-1012,-882,-837,-1022,-848,-1162,-825,-798,-775,-1835,-1584,-2703,-2360,-29989,-29984,-29975,-3158,-29985,-29986,-29991,-29991,-29994,-29992,-29995,-29996,-29996,-29997,-29997,-29998,-29998,-29999,-29999]} 1. c4 {[%emt 0:00:35]} c5 {[%emt 0:00:30]} 2. Nc3 {[%emt 0:00:42]} Nf6 {[%emt 0:00:15]} 3. e4 {[%emt 0:02:00]} Nc6 {[%emt 0:00:18]} 4. Nge2 {[%emt 0:03:38]} e5 {[%emt 0:02:40]} 5. g3 {[%emt 0:01:33]} d6 {[%emt 0:00:50]} 6. Bg2 {[%emt 0:01:48] A34: Symmetrical English: 2 Nc3, lines with ...d5.} h5 {[%emt 0:00:29][%cal Bh7h5,Bh5h4,Bh4g3][%mdl 32]} 7. d3 {[%emt 0:04:44]} h4 {[%emt 0:00:43]} 8. h3 {[%emt 0:06:38] The position is equal.} hxg3 {[%emt 0:00:38] [#]} 9. f4 $146 {[%emt 0:03:05]} (9. fxg3 $11 {keeps the balance.} a6 10. Bg5) ({Predecessor:} 9. fxg3 Be7 10. Be3 Nd4 11. Nd5 Nxd5 12. cxd5 Bg5 13. Bxg5 Qxg5 14. Qd2 Qxd2+ 15. Kxd2 Nxe2 16. Kxe2 {½-½ (55) Kalivoda,J (2195)-Muratidis,N (2194) Czech Republic 2014}) 9... Nh5 $17 {[%emt 0:01:40] Black is more active.} 10. f5 {[%emt 0:04:10]} Be7 {[%emt 0:04:40]} 11. Nd5 {[%emt 0:05:12]} Bh4 {[%emt 0:00:38]} 12. a3 {[%emt 0:06:42]} Bd7 {[%emt 0:03:59]} 13. b4 {[%emt 0:03:00]} Nf6 {[%emt 0:03:17]} (13... Nd4 $19 {[%cal Od4f3]} 14. O-O Nf6) 14. Bb2 {[%emt 0:09:45]} (14. bxc5 $17 dxc5 15. Rb1) 14... Nxd5 {[%emt 0:01:29]} 15. cxd5 {[%emt 0:02:15]} Nd4 {[%emt 0:02:14]} 16. Bxd4 {[%emt 0:04:25]} (16. O-O {was necessary.}) 16... cxd4 $19 {[%emt 0:00:54]} ({Inferior is} 16... exd4 17. O-O $17) 17. Ng1 $2 {[%emt 0:04:29]} (17. O-O) 17... Bg5 {[%emt 0:02:57]} 18. Qf3 {[%emt 0:01:30]} a5 {[%emt 0:01:01]} 19. Rb1 {[%emt 0:01:21]} axb4 {[%emt 0:04:40]} 20. axb4 {[%emt 0:00:19]} Ra2 {[%emt 0:01:57]} 21. Ne2 {[%emt 0:02:06]} Bd2+ {[%emt 0:05:41]} 22. Kf1 {[%emt 0:00:50]} Bb5 {[%emt 0:06:01]} 23. Qxg3 {[%emt 0:05:08]} Qh4 {[%emt 0:03:16]} 24. Rb3 {[%emt 0:05:28]} Ba4 {[%emt 0:03:46]} 25. Rb1 {[%emt 0:02:04]} Bc2 {[%emt 0:01:00] A strong pair of Bishops.} 26. Qxh4 {[%emt 0:01:14]} Rxh4 {[%emt 0:00:43][%cal Bh8h4,Bh4f4,Bf4f2][%mdl 32]} 27. Rc1 {[%emt 0:03:36]} Bxd3 {[%emt 0:01:14]} 28. Rc8+ {[%emt 0:01:24]} Kd7 {[%emt 0:00:17] [#] ( -> ...Be3)} 29. Rf8 {[%emt 0:01:11]} Rf4+ {[%emt 0:00:17]} 30. Kg1 {[%emt 0:01:11]} Bxe2 {[%emt 0:00:41]} (30... Ke7 $142 31. Ra8 Rxa8 32. Nxd4 exd4 33. b5 Ra2 34. Kh2 Rf2 35. Rc1 Bxc1 36. f6+ gxf6 37. h4 Rxg2+ 38. Kh3 Bxe4 39. h5 Ra3+ 40. Kh4 Bg5#) 31. Kh2 {[%emt 0:00:55]} Bh5 {[%emt 0:01:22] Black mates.} 32. Rh8 {[%emt 0:01:34] [#]} Rf2 $1 {[%emt 0:01:47]} 33. Rg1 {[%emt 0:02:08]} (33. Kg3 Bf4+) 33... Bf3 {[%emt 0:00:58]} 34. Kg3 {[%emt 0:00:44]} Bf4+ {[%emt 0:00:09]} 35. Kh4 {[%emt 0:00:05]} Rxg2 {[%emt 0:00:21]} 36. Rxg2 {[%emt 0:01:38]} Rxg2 {[%emt 0:00:09][%csl Gg2][%cal Rf4g5]} 37. Rh5 {[%emt 0:00:10]} f6 {[%emt 0:00:39][%csl Gg2][%cal Rf4g3]} 38. b5 {[%emt 0:01:02]} Bg3# {[%emt 0:00:09] Weighted Error Value: White=1.20/Black=0.46} 0-1

[Event "Vienna Championship-B 2022"]
[Site "Vienna"]
[Date "2022.09.17"]
[Round "1.5"]
[White "Gratze, Michael"]
[Black "Hirsch, Adolf Jun."]
[Result "0-1"]
[ECO "C05"]
[WhiteElo "1954"]
[BlackElo "1731"]
[Annotator "TA"]
[PlyCount "98"]
[EventDate "2022.09.17"]
[EventType "swiss"]
[EventCountry "AUT"]
[SourceTitle "playchess.com"]
[Source "ChessBase"]
[SourceQuality "1"]
[TimeControl "5400+30"]

{[%evp 17,98,7,7,2,14,12,9,9,10,7,12,16,28,35,34,29,33,14,13,13,18,10,16,6,14,13,9,13,18,8,14,-27,-24,-23,-18,-22,-25,-20,-14,-29,-18,-21,-14,-107,-107,-107,-107,-107,-107,-109,-110,-125,-129,-428,-409,-1116,-1080,-1532,-1422,-1293,-1532,-1625,-1979,-5925,-5991,-29973,-29973,-29974,-29974,-29976,-29976,-29976,-29978,-29978,-29979,-29979,-29980,-29980,-29981,-29981,-29982,-29982,-29983]} 1. e4 {[%emt 0:00:03]} e6 {[%emt 0:00:06]} 2. d4 {[%emt 0:00:08]} d5 {[%emt 0:00:04]} 3. Nd2 {[%emt 0:00:03]} c5 {[%emt 0:00:12]} 4. Ngf3 {[%emt 0:00:22]} Nf6 {[%emt 0:01:07][%cal Bg8f6,Bf6d7,Bd7c5,Bc5d3][%mdl 32]} 5. e5 {[%emt 0:00:05]} Nfd7 {[%emt 0:00:03]} 6. c4 {[%emt 0:00:10]} Nc6 {[%emt 0:01:37]} 7. cxd5 {[%emt 0:00:16]} exd5 {[%emt 0:00:14]} 8. Bd3 {[%emt 0:00:07]} cxd4 {[%emt 0:02:31]} 9. O-O {[%emt 0:00:07]} Be7 {[%emt 0:00:12]} (9... Ncxe5 $2 10. Nxe5 Nxe5 11. Re1 $18) 10. Re1 {[%emt 0:00:11] C05: French Tarrasch: 3...Nf6 4 e5 Nfd7, 5 f4 and 5 Bd3 sidelines.} Nc5 {[%emt 0:02:24]} 11. Nb3 {[%emt 0:00:19]} Nxd3 {[%emt 0:00:33]} 12. Qxd3 {[%emt 0:00:08] The position is equal.} Nb4 {[%emt 0:01:39]} 13. Qd1 {[%emt 0:02:53]} d3 {[%emt 0:01:06]} 14. Nfd4 {[%emt 0:00:20] [#] Inhibits Nc2.} Nc2 $146 {[%emt 0:00:54]} ({Predecessor:} 14... Qb6 15. Be3 Qg6 16. Qd2 O-O 17. a3 Bh3 18. f3 Nc2 19. Nxc2 dxc2 20. Nd4 Rac8 {½-½ (44) Zapata,A (2398)-Panchanatham,V (2431) Charlotte 2018}) 15. Nxc2 {[%emt 0:00:20]} dxc2 {[%emt 0:00:04]} 16. Qxc2 {[%emt 0:00:10]} Be6 {[%emt 0:01:21]} 17. Nd4 {[%emt 0:00:53]} O-O {[%emt 0:01:06]} 18. Qb3 {[%emt 0:04:06]} Qd7 {[%emt 0:03:37]} 19. Be3 {[%emt 0:01:11]} (19. Qg3 {looks sharper.} Rfc8 20. Be3 Bc5 21. Bh6) 19... a6 {[%emt 0:00:36]} 20. Rec1 {[%emt 0:08:58]} Rac8 {[%emt 0:00:29]} 21. Qd1 {[%emt 0:00:18]} Rxc1 {[%emt 0:01:30]} 22. Rxc1 {[%emt 0:00:07]} Rc8 {[%emt 0:00:11]} 23. Rxc8+ {[%emt 0:01:54]} Qxc8 {[%emt 0:00:06]} 24. Qc2 {[%emt 0:00:21]} Qxc2 {[%emt 0:01:08]} 25. Nxc2 $11 {[%emt 0:00:01][%mdl 4096] Endgame KBB-KBN} d4 {[%emt 0:01:28]} 26. Nxd4 {[%emt 0:00:04]} Bxa2 {[%emt 0:00:05]} 27. Nf5 {[%emt 0:02:05]} Bb4 {[%emt 0:05:41]} 28. Bb6 {[%emt 0:00:50]} Be6 {[%emt 0:02:40]} 29. Nd4 {[%emt 0:02:30]} Kf8 {[%emt 0:04:15]} 30. Nxe6+ {[%emt 0:00:27]} (30. g3 $11) 30... fxe6 {[%emt 0:00:02] KB-KB} 31. f4 {[%emt 0:02:04]} Ke8 {[%emt 0:00:12]} 32. Kf2 {[%emt 0:00:57] [#]} Kd7 $1 {[%emt 0:00:21]} 33. Kf3 {[%emt 0:00:15]} Kc6 {[%emt 0:00:19]} 34. Bd4 {[%emt 0:02:54]} Kd5 {[%emt 0:00:21]} 35. Ke3 {[%emt 0:00:04][%mdl 8192] White does not recover from this.} (35. Bb6 $17 {was the only chance.}) 35... Bd2+ $19 {[%emt 0:02:27]} 36. Kxd2 {[%emt 1:12:49]} (36. Kd3 $142 Bxf4 37. h3) 36... Kxd4 {[%emt 1:07:49] KP-KP} 37. Kc2 {[%emt 0:00:00]} a5 {[%emt 0:00:00]} 38. Kd2 {[%emt 0:00:00]} b5 {[%emt 0:00:00][%cal Bb7b5,Bb5a4][%mdl 32]} 39. Kc2 {[%emt 0:00:00]} a4 {[%emt 0:00:00]} 40. b3 {[%emt 0:00:00]} h5 {[%emt 0:00:00]} 41. bxa4 {[%emt 0:00:00]} bxa4 {[%emt 0:00:00] Black mates.} 42. Kb2 {[%emt 0:00:00]} Ke4 {[%emt 0:00:00]} 43. g3 {[%emt 0:00:00]} g6 {[%emt 0:00:00]} 44. Ka3 {[%emt 0:00:00]} Kf3 {[%emt 0:00:00]} 45. Kxa4 {[%emt 0:00:00]} Kg2 {[%emt 0:00:00]} 46. Kb5 {[%emt 0:00:00]} Kxh2 {[%emt 0:00:00]} 47. Kc6 {[%emt 0:00:00]} Kxg3 {[%emt 0:00:00]} 48. Kd6 {[%emt 0:00:00] [#]} h4 $1 {[%emt 0:00:00][%cal Bh5h4,Bh4h3][%mdl 32]} 49. Kxe6 {[%emt 0:00:00]} h3 {[%emt 0:00:00] Weighted Error Value: White=0.55/Black=0.02 (flawless)} ({Not} 49... Kxf4 50. Kf6 $11) 0-1